bitfinex/quotes_SOLUSD_20260113
["timestamp","ask_amount","ask_price","bid_price","bid_amount"]
[1768301007341,19.86753694,142.3,142.27,0.72067024]
[1768301007937,19.86753694,142.3,142.27,0.66067024]
[1768301008664,21.89470462,142.3,142.27,0.66067024]
[1768301008957,22.30628535,142.3,142.27,0.66067024]
[1768301010355,20.27911767,142.3,142.27,0.66067024]
[1768301010539,22.30628535,142.3,142.26,0.72067024]
[1768301010852,0.68077174,142.29,142.25,2.02716768]
[1768301012862,2.44144032,142.28,142.24,0.72067024]
[1768301013080,0.67810675,142.27,142.24,0.72067024]
[1768301013562,0.67810675,142.27,142.23,9.05788538]
[1768301013759,0.67810675,142.27,142.23,9.77855562]
[1768301013944,0.67810675,142.27,142.23,2.02716768]
[1768301014151,0.41691098,142.26,142.22,7.75186875]
[1768301014644,0.41691098,142.26,142.22,9.77903643]
[1768301015042,0.6754948,142.25,142.21,9.77574355]
[1768301015250,0.6754948,142.25,142.21,9.05888637]
[1768301015465,0.41949681,142.24,142.21,7.03171869]
[1768301015640,0.41949681,142.24,142.21,9.05888637]
[1768301018141,7.02964048,142.26,142.22,0.71685718]
[1768301018342,9.47283208,142.26,142.22,0.71685718]
[1768301019667,7.4456644,142.26,142.22,0.71685718]
[1768301019966,9.47283208,142.26,142.22,0.71685718]
[1768301021465,2.4457951,142.24,142.2,0.71685718]
[1768301021767,15.2857951,142.24,142.2,0.71685718]
[1768301022666,22.31664654,142.24,142.2,0.71685718]
[1768301022853,2.02716768,142.23,142.2,0.71685718]
[1768301023055,2.02716768,142.22,142.2,0.71685718]
[1768301023873,2.7009632,142.23,142.2,0.71685718]
[1768301024970,9.73200198,142.23,142.2,0.71685718]
[1768301025774,2.02716768,142.22,142.2,0.71685718]
[1768301026070,0.4211791,142.22,142.19,0.71685718]
[1768301026261,2.44834678,142.22,142.19,0.71685718]
[1768301026760,2.02716768,142.22,142.19,0.71685718]
[1768301028155,2.4431916,142.22,142.19,0.71685718]
[1768301028362,2.70354066,142.21,142.18,0.71685718]
[1768301028871,2.02716768,142.2,142.18,0.71685718]
[1768301029660,2.02716768,142.19,142.16,7.750997]
[1768301029879,2.02716768,142.19,142.16,0.71685718]
[1768301030590,2.02716768,142.19,142.14,0.71685718]
[1768301030591,2.02716768,142.17,142.14,0.71685718]
[1768301031357,2.02716768,142.16,142.14,0.71685718]
[1768301032070,2.02716768,142.16,142.12,7.03596765]
[1768301032308,0.42853348,142.12,142.08,60.71685718]
[1768301032463,59.78773733,142.17,142.09,0.71685718]
[1768301032654,2.02716768,142.14,142.1,0.71685718]
[1768301033170,2.02716768,142.13,142.1,0.71685718]
[1768301034069,7.03494241,142.15,142.11,0.71685718]
[1768301034471,2.02716768,142.14,142.11,0.71685718]
[1768301035693,2.02716768,142.13,142.11,0.71685718]
[1768301037897,9.06303403,142.13,142.11,0.71685718]
[1768301038098,2.02716768,142.12,142.11,0.71685718]
[1768301038377,2.02716768,142.12,142.09,0.71685718]
[1768301038588,2.02716768,142.1,142.07,0.2]
[1768301038763,2.02716768,142.08,142.07,0.2]
[1768301038962,14.86716768,142.09,142.07,0.2]
[1768301039179,12.84,142.09,142.07,0.2]
[1768301039383,14.86716768,142.09,142.07,0.2]
[1768301040160,2.02716768,142.08,142.05,0.91685718]
[1768301040362,2.02716768,142.07,142.05,0.91685718]
[1768301041385,14.86716768,142.09,142.05,0.91685718]
[1768301041979,2.02716768,142.08,142.05,0.91685718]
[1768301042180,12.84,142.09,142.05,7.95656768]
[1768301042686,2.02716768,142.08,142.05,7.95656768]
[1768301043266,2.02716768,142.06,142.05,0.2]
[1768301043601,14.83716768,142.06,142.02,0.2]
[1768301043901,2.02716768,142.04,142.02,0.2]
[1768301044786,2.02716768,142.04,142.02,7.24115922]
[1768301045288,3.17482237,142.04,142.02,7.96612676]
[1768301045472,3.17482237,142.04,142.02,0.92496754]
[1768301047809,19.87937337,142.06,142.02,0.92496754]
[1768301048296,3.17482237,142.04,142.02,0.2]
[1768301049474,3.17482237,142.03,142.02,0.2]
[1768301049875,3.17482237,142.04,142.02,0.92496754]
[1768301051902,3.17482237,142.03,142.02,0.2]
[1768301052890,6.34964474,142.03,141.99,1e-08]
[1768301053193,6.34964474,142.0,141.96,14.70870126]
[1768301053396,12.84,141.99,141.96,14.70870126]
[1768301053594,3.17482237,141.98,141.97,0.72496754]
[1768301053782,12.84,141.99,141.97,0.72496754]
[1768301053990,3.17482237,141.98,141.97,0.72496754]
[1768301054596,12.84,141.99,141.96,14.67232962]
[1768301054791,3.17482237,141.98,141.96,21.71650236]
[1768301055188,3.17482237,141.97,141.96,14.67232962]
[1768301055389,12.84,141.99,141.97,0.6885959]
[1768301055597,3.17482237,141.98,141.96,13.98373372]
[1768301055798,3.17482237,141.97,141.96,13.98373372]
[1768301055984,3.17482237,141.98,141.96,21.02773134]
[1768301056491,3.17482237,141.99,141.96,21.02773134]
[1768301056798,3.14482237,141.99,141.96,21.02773134]
[1768301057002,3.17482237,141.98,141.96,21.02773134]
[1768301057582,3.17482237,141.98,141.96,21.71632724]
[1768301058132,3.17482237,141.98,141.96,14.67232962]
[1768301058477,3.17482237,141.97,141.96,13.98373372]
[1768301058695,3.17482237,141.97,141.93,7.73421846]
[1768301058896,3.17482237,141.96,141.94,0.6885959]
[1768301059094,3.17482237,141.95,141.92,0.6885959]
[1768301060306,3.17482237,141.95,141.92,7.7347517]
[1768301060905,0.65791706,141.95,141.91,0.6885959]
[1768301061100,3.17482237,141.94,141.91,0.6885959]
[1768301061301,3.17482237,141.94,141.91,7.73500887]
[1768301061491,12.97858598,141.95,141.91,7.73500887]
[1768301061688,16.15340835,141.95,141.91,10.90983124]
[1768301061886,16.03482237,141.95,141.92,0.6885959]
[1768301062081,0.67442606,141.97,141.92,0.6885959]
[1768301062082,7.04393789,141.97,141.93,0.6885959]
[1768301062319,16.03482237,141.96,141.93,0.6885959]
[1768301062482,3.17482237,141.95,141.91,10.90981516]
[1768301062685,16.69813219,141.96,141.91,10.90981516]
[1768301063100,16.69813219,141.96,141.92,0.6885959]
[1768301064192,13.52330982,141.96,141.92,3.86341827]
[1768301064891,20.56758968,141.96,141.92,3.86341827]
[1768301065404,20.56758968,141.96,141.92,10.90959845]
[1768301066389,20.56758968,141.96,141.92,3.86341827]
[1768301067710,20.56758968,141.96,141.93,3.17482237]
[1768301068790,19.90427986,141.96,141.93,3.86341827]
[1768301068991,19.90427986,141.96,141.93,0.6885959]
[1768301069499,19.90427986,141.96,141.93,3.86341827]
[1768301069705,103.4,142.02,141.96,0.6885959]
[1768301069894,16.03482237,142.01,141.96,3.86341827]
[1768301070094,19.90175762,142.01,141.97,3.86341827]
[1768301070291,20.57618368,142.01,141.97,3.86341827]
[1768301071119,20.57618368,142.01,141.97,0.6885959]
[1768301071315,20.57618368,142.01,141.97,3.86341827]
[1768301071722,19.90175762,142.01,141.98,3.86341827]
[1768301071922,19.90145146,142.02,141.99,3.17482237]
[1768301073720,19.90145146,142.02,141.98,0.6885959]
[1768301073898,19.90145146,142.02,141.99,3.17482237]
[1768301074320,20.0144796,142.02,141.99,3.17482237]
[1768301074617,12.97302814,142.02,142.0,3.17482237]
[1768301074823,12.86,142.02,142.0,3.17482237]
[1768301076718,12.86,142.02,142.01,3.17482237]
[1768301076904,12.86,142.02,142.0,3.83210458]
[1768301077922,7.04098314,142.03,142.0,3.83210458]
[1768301078724,7.04098314,142.03,142.0,0.65728221]
[1768301079327,7.15617509,142.03,141.99,3.83210458]
[1768301079532,3.84149228,142.02,141.97,0.65728221]
[1768301079727,16.1555291,142.01,141.97,0.65728221]
[1768301079910,3.17482237,142.0,141.97,0.65728221]
[1768301080536,16.1555291,142.01,141.97,0.65728221]
[1768301081530,7.04225352,142.0,141.97,0.65728221]
[1768301087011,0.12611177,141.98,141.94,3.83210458]
[1768301087336,16.16093414,141.98,141.94,3.83210458]
[1768301088149,16.16093414,141.98,141.94,10.87701718]
[1768301088334,16.16093414,141.98,141.94,7.70219481]
[1768301088816,12.98611177,141.98,141.94,7.70219481]
[1768301089019,23.20426091,141.98,141.94,7.70219481]
[1768301090012,23.20426091,141.98,141.94,0.65728221]
[1768301091447,3.83068165,141.97,141.93,0.65728221]
[1768301092339,10.87463334,141.97,141.93,0.65728221]
[1768301093042,20.57556361,141.98,141.94,0.65728221]
[1768301093244,3.17482237,141.97,141.94,0.65728221]
[1768301093540,3.29001432,141.97,141.94,0.65728221]
[1768301094042,20.57556361,141.98,141.94,0.65728221]
[1768301094244,3.29001432,141.97,141.93,7.70260808]
[1768301095152,10.33384633,141.97,141.93,7.70260808]
[1768301095543,3.17482237,141.96,141.93,0.65728221]
[1768301095843,12.86,141.97,141.94,3.83210458]
[1768301096041,16.15001432,141.99,141.94,3.83210458]
[1768301096226,0.66666991,141.98,141.94,3.17482237]
[1768301096543,16.70706276,141.99,141.95,0.65728221]
[1768301097436,23.74989392,141.99,141.95,0.65728221]
[1768301097829,20.57507155,141.99,141.95,0.65728221]
[1768301098030,23.74989392,141.99,141.95,0.65728221]
[1768301098425,3.29001432,141.98,141.95,0.65728221]
[1768301098838,0.66666991,141.97,141.94,7.04474725]
[1768301099024,0.66666991,141.97,141.94,7.70202946]
[1768301100540,7.71044303,141.97,141.94,0.65728221]
[1768301100746,0.66666991,141.97,141.94,0.65728221]
[1768301100946,3.84706276,141.98,141.94,0.65728221]
[1768301101245,0.11519195,141.97,141.94,0.65728221]
[1768301102137,0.11519195,141.97,141.94,7.70250267]
[1768301102338,10.89046227,141.98,141.94,7.70250267]
[1768301103343,3.17482237,141.95,141.92,20.0]
[1768301103557,3.17482237,141.93,141.92,20.0]
[1768301103855,3.17482237,141.94,141.92,19.3114041]
[1768301104159,3.17482237,141.93,141.92,19.3114041]
[1768301104527,3.17482237,141.93,141.92,1e-08]
[1768301104732,24.65322862,141.97,141.92,1e-08]
[1768301104931,12.86,141.96,141.92,0.68053472]
[1768301105127,16.03482237,141.96,141.92,0.68053472]
[1768301105328,7.04473406,141.95,141.92,1e-08]
[1768301105552,3.17482237,141.94,141.92,1e-08]
[1768301105746,10.21955643,141.95,141.92,1e-08]
[1768301106651,3.17482237,141.94,141.92,1e-08]
[1768301106828,10.22044982,141.94,141.92,1e-08]
[1768301107528,9.08052342,141.94,141.92,1e-08]
[1768301108847,7.04487253,141.95,141.92,1e-08]
[1768301109152,2.03489597,141.94,141.92,1e-08]
[1768301109354,7.04487253,141.95,141.92,1e-08]
[1768301109548,9.0797685,141.95,141.92,1e-08]
[1768301109740,2.03489597,141.94,141.92,1e-08]
[1768301110153,9.08017086,141.94,141.92,1e-08]
[1768301114949,2.03489597,141.93,141.92,1e-08]
[1768301116133,9.08017086,141.94,141.92,1e-08]
[1768301117761,7.04527489,141.94,141.9,0.70406323]
[1768301117942,2.03489597,141.93,141.9,0.70406323]
[1768301118341,7.04527489,141.94,141.9,0.70406323]
[1768301118551,2.03489597,141.93,141.9,0.70406323]
[1768301118764,9.0806704,141.93,141.9,0.70406323]
[1768301119872,2.03489597,141.92,141.88,7.7520288]
[1768301120045,2.03489597,141.92,141.9,0.70406323]
[1768301121562,2.03489597,141.91,141.9,0.70406323]
[1768301125372,19.90577443,141.93,141.9,0.70406323]
[1768301125547,2.03489597,141.91,141.9,0.70406323]
[1768301125746,2.03489597,141.91,141.88,0.70406323]
[1768301125943,2.03489597,141.89,141.86,0.70406323]
[1768301126150,12.86,141.9,141.86,0.70406323]
[1768301126365,2.03489597,141.88,141.86,0.70406323]
[1768301126951,2.03489597,141.87,141.84,0.70406323]
[1768301127145,0.65791414,141.87,141.83,7.75463808]
[1768301127339,2.69281011,141.87,141.84,7.75413391]
[1768301127947,2.03489597,141.88,141.85,0.70406323]
[1768301128149,2.03489597,141.87,141.84,0.70406323]
[1768301128342,2.6978351,141.87,141.83,7.75451661]
[1768301128548,2.6978351,141.87,141.83,9.78941258]
[1768301128751,0.16044026,141.86,141.83,9.08545517]
[1768301128949,0.16044026,141.86,141.82,9.98997774]
[1768301129151,2.19533623,141.86,141.82,9.98997774]
[1768301129359,2.19533623,141.86,141.82,7.95508177]
[1768301129561,2.19533623,141.86,141.82,9.98997774]
[1768301129562,0.16044026,141.86,141.82,9.98997774]
[1768301129755,0.16044026,141.86,141.83,7.0506051]
[1768301130060,2.19533623,141.86,141.83,7.0506051]
[1768301130261,9.24458552,141.86,141.82,9.98998126]
[1768301130471,2.03489597,141.85,141.82,7.95508529]
[1768301130650,19.65590348,141.88,141.85,0.70406323]
[1768301130651,12.86,141.88,141.85,0.70406323]
[1768301130851,13.01536451,141.88,141.85,0.70406323]
[1768301131071,13.01536451,141.88,141.85,2.7389592]
[1768301131375,15.56296212,141.9,141.86,2.7389592]
[1768301131746,22.61037147,141.9,141.86,0.70406323]
[1768301131951,22.61037147,141.9,141.86,2.7389592]
[1768301132559,2.03489597,141.89,141.86,0.70406323]
[1768301133259,21.94230532,141.9,141.87,0.70406323]
[1768301134074,2.03489597,141.88,141.81,17.62866699]
[1768301134250,1.97489598,141.88,141.83,9.08519598]
[1768301134453,2.03489597,141.88,141.83,9.08519598]
[1768301134973,2.03489597,141.87,141.83,9.08519598]
[1768301135167,2.03489597,141.86,141.82,9.28590914]
[1768301135972,2.03489597,141.86,141.83,0.7217096]
[1768301137187,2.03489597,141.86,141.83,7.77223491]
[1768301137476,2.03489597,141.86,141.84,0.7217096]
[1768301137976,9.75166447,141.87,141.84,0.7217096]
[1768301138481,15.56294751,141.87,141.84,0.7217096]
[1768301138877,13.52805154,141.87,141.84,0.7217096]
[1768301139182,13.52805154,141.87,141.84,7.77189165]
[1768301139183,14.89489597,141.87,141.84,7.77189165]
[1768301142272,2.70294751,141.86,141.83,7.05029455]
[1768301142451,0.66805154,141.86,141.83,7.77200415]
[1768301142657,14.89489597,141.87,141.84,0.7217096]
[1768301143356,13.52805154,141.87,141.84,0.7217096]
[1768301143655,15.56294751,141.87,141.84,0.7217096]
[1768301144559,13.52805154,141.87,141.84,0.7217096]
[1768301145270,15.56294751,141.87,141.84,7.77185787]
[1768301146963,15.56294751,141.87,141.84,0.7217096]
[1768301148464,13.52805154,141.87,141.84,0.7217096]
[1768301148773,15.56294751,141.87,141.84,0.7217096]
[1768301149080,22.61167132,141.87,141.84,0.7217096]
[1768301149678,13.52805154,141.87,141.84,7.77182483]
[1768301150765,13.52805154,141.87,141.84,0.7217096]
[1768301151883,15.56294751,141.87,141.84,0.7217096]
[1768301152083,0.66805154,141.85,141.82,0.9217096]
[1768301152273,2.64294752,141.85,141.82,0.9217096]
[1768301152478,2.03489597,141.85,141.82,0.2]
[1768301152792,2.03489597,141.85,141.82,0.9217096]
[1768301153376,19.9089145,141.87,141.82,0.9217096]
[1768301153694,2.03489597,141.85,141.82,0.9217096]
[1768301155672,2.70294751,141.86,141.82,7.97287374]
[1768301155990,12.86,141.87,141.84,0.7217096]
[1768301157093,12.86,141.87,141.84,7.77184605]
[1768301157670,0.60630836,141.84,141.8,0.2]
[1768301157995,2.70294751,141.81,141.78,0.2]
[1768301158220,2.03489597,141.8,141.78,0.2]
[1768301159186,7.71941068,141.82,141.78,7.2531323]
[1768301159375,2.03489597,141.8,141.78,7.2531323]
[1768301159581,2.03489597,141.79,141.76,17.63526416]
[1768301159780,2.03489597,141.79,141.77,0.7217096]
[1768301160185,2.03489597,141.8,141.77,0.7217096]
[1768301160684,7.05135914,141.82,141.79,0.7217096]
[1768301160685,0.66805154,141.82,141.79,0.7217096]
[1768301160884,2.03489597,141.81,141.79,0.7217096]
[1768301162399,2.03489597,141.81,141.79,7.77430625]
[1768301163701,2.03489597,141.8,141.78,7.05311109]
[1768301163904,2.03489597,141.8,141.78,7.77482069]
[1768301164107,2.03489597,141.8,141.79,7.05268354]
[1768301164277,2.03489597,141.81,141.79,7.05268354]
[1768301165821,2.03489597,141.81,141.78,7.77471396]
[1768301166005,0.66805154,141.82,141.78,7.77471396]
[1768301166303,2.03489597,141.81,141.79,0.682941]
[1768301166603,2.03489597,141.82,141.79,0.682941]
[1768301168019,2.03489597,141.82,141.79,7.73529466]
[1768301168309,0.72094296,141.81,141.79,7.05235366]
[1768301169180,2.75583893,141.82,141.79,7.73529466]
[1768301169380,3.18497764,141.82,141.79,7.73529466]
[1768301170188,13.58094296,141.83,141.79,7.73529466]
[1768301170418,8.44265157,141.82,141.79,7.73529466]
[1768301170730,3.18497764,141.82,141.79,7.73529466]
[1768301171611,3.18497764,141.82,141.8,0.682941]
[1768301171801,16.7659206,141.83,141.8,0.682941]
[1768301173108,13.58094296,141.83,141.79,7.73531922]
[1768301173419,16.7659206,141.83,141.8,0.682941]
[1768301174714,13.58094296,141.83,141.8,0.682941]
[1768301174890,3.18497764,141.82,141.8,0.682941]
[1768301176221,20.63168123,141.83,141.8,0.682941]
[1768301176397,3.18497764,141.82,141.8,0.682941]
[1768301177619,20.63168123,141.83,141.8,0.682941]
[1768301177803,3.18497764,141.82,141.8,0.682941]
[1768301178007,16.7659206,141.83,141.8,0.682941]
[1768301179317,5.26298523,141.82,141.8,0.682941]
[1768301179500,16.7659206,141.83,141.8,0.682941]
[1768301179997,23.81663691,141.83,141.8,0.682941]
[1768301180200,20.63165927,141.83,141.8,0.682941]
[1768301180420,23.81663691,141.83,141.8,0.682941]
[1768301180618,20.63165927,141.83,141.8,0.682941]
[1768301180798,23.81663691,141.83,141.8,0.682941]
[1768301182826,0.68333376,141.82,141.79,0.72436837]
[1768301183002,0.65333376,141.82,141.79,3.90934601]
[1768301184025,0.65333376,141.82,141.79,7.7769433]
[1768301184209,23.09569395,141.83,141.8,0.72436837]
[1768301184919,23.77902771,141.83,141.8,0.72436837]
[1768301185522,23.77770671,141.86,141.82,0.72436837]
[1768301185738,9.13441716,141.85,141.82,0.72436837]
[1768301185911,0.68333376,141.85,141.82,0.72436837]
[1768301186223,3.8683114,141.85,141.82,0.72436837]
[1768301186612,7.73316034,141.85,141.82,0.72436837]
[1768301187002,10.91813798,141.85,141.82,0.72436837]
[1768301187204,7.73316034,141.85,141.82,0.72436837]
[1768301187416,0.68333376,141.87,141.84,0.72436837]
[1768301187618,5.26711986,141.86,141.84,0.72436837]
[1768301187798,23.77714836,141.87,141.82,10.2360739]
[1768301187999,5.26703471,141.86,141.83,0.72436837]
[1768301188199,0.68333376,141.86,141.83,0.72436837]
[1768301188608,0.68333376,141.86,141.83,7.77496872]
[1768301189015,3.8683114,141.86,141.83,7.77496872]
[1768301189905,7.73257112,141.86,141.83,0.72436837]
[1768301190131,3.18497764,141.85,141.83,0.72436837]
[1768301190628,0.68333376,141.86,141.83,0.72436837]
[1768301190825,3.18497764,141.85,141.82,7.77533286]
[1768301191010,3.8683114,141.83,141.79,0.72436837]
[1768301191210,3.8683114,141.83,141.79,3.90934601]
[1768301191507,3.8683114,141.84,141.8,0.72436837]
[1768301192025,3.8683114,141.84,141.81,7.05168675]
[1768301192233,3.8683114,141.85,141.82,0.72436837]
[1768301192524,3.18497764,141.85,141.82,0.72436837]
[1768301192708,3.8683114,141.85,141.82,0.72436837]
[1768301192909,0.68333376,141.89,141.85,0.72436837]
[1768301193106,5.26929206,141.88,141.86,0.72436837]
[1768301193327,7.04671975,141.91,141.86,3.90934601]
[1768301193328,3.18497764,141.9,141.86,3.90934601]
[1768301193631,5.95150583,141.89,141.86,0.72436837]
[1768301193831,0.68333376,141.89,141.86,0.72436837]
[1768301195204,0.68333376,141.89,141.86,3.90934601]
[1768301195715,0.68333376,141.89,141.86,10.95851615]
[1768301195911,3.90939141,141.88,141.84,0.66275395]
[1768301196325,3.90939141,141.88,141.84,7.71264699]
[1768301197033,0.70444514,141.85,141.82,0.66275395]
[1768301197226,3.88942278,141.85,141.81,7.71415678]
[1768301197540,3.90899206,141.84,141.81,7.71415678]
[1768301197762,3.90899206,141.84,141.81,7.05140283]
[1768301199037,3.18497764,141.85,141.81,7.71415678]
[1768301199233,3.88922311,141.85,141.81,7.71415678]
[1768301201031,0.70424547,141.85,141.81,7.71415678]
[1768301201230,3.88922311,141.85,141.81,7.71415678]
[1768301205248,0.72421209,141.84,141.81,7.05140283]
[1768301205432,0.72401442,141.82,141.79,7.71543749]
[1768301205741,3.90939141,141.83,141.79,7.71543749]
[1768301205939,0.72441377,141.83,141.79,7.71543749]
[1768301206146,3.90939141,141.83,141.79,7.71543749]
[1768301207064,3.90939141,141.83,141.7,3.05860144]
[1768301207065,6.36995528,141.76,141.7,3.05860144]
[1768301207348,3.18497764,141.76,141.69,0.66275395]
[1768301207523,3.18497764,141.73,141.69,0.66275395]
[1768301207722,3.67,141.79,141.71,0.66275395]
[1768301207933,3.18497764,141.77,141.72,0.66275395]
[1768301208434,3.18497764,141.76,141.72,0.66275395]
[1768301208624,3.18497764,141.77,141.72,0.66275395]
[1768301208823,3.18497764,141.77,141.73,7.71842318]
[1768301209559,3.18497764,141.77,141.74,0.66275395]
[1768301209725,3.18497764,141.78,141.75,12.86]
[1768301210322,3.18497764,141.78,141.75,13.52275395]
[1768301210729,6.85497764,141.79,141.75,13.52275395]
[1768301211054,6.85497764,141.79,141.76,7.71693002]
[1768301212446,3.18497764,141.77,141.76,0.66275395]
[1768301212627,3.18497764,141.77,141.76,13.54275395]
[1768301212827,3.67,141.79,141.76,13.54275395]
[1768301213350,3.18497764,141.78,141.76,13.54275395]
[1768301214121,10.23716489,141.8,141.76,20.59690611]
[1768301214323,56.09769791,141.87,141.78,0.66275395]
[1768301214536,3.18497764,141.82,141.78,0.66275395]
[1768301215049,3.18497764,141.84,141.78,0.66275395]
[1768301215234,3.18497764,141.82,141.78,0.66275395]
[1768301215636,7.05117816,141.83,141.78,0.66275395]
[1768301215833,3.18497764,141.82,141.78,0.66275395]
[1768301216053,7.05117816,141.83,141.77,7.05347824]
[1768301216259,3.18497764,141.8,141.77,0.66275395]
[1768301216759,3.18497764,141.8,141.78,12.88]
[1768301217343,3.18497764,141.79,141.78,12.88]
[1768301217554,3.18497764,141.8,141.78,12.88]
[1768301217751,7.05173989,141.81,141.78,12.88]
[1768301217931,3.18497764,141.8,141.78,12.88]
[1768301221350,7.05173989,141.81,141.78,12.88]
[1768301221351,3.18497764,141.81,141.78,12.88]
[1768301221728,3.18497764,141.81,141.78,20.59583822]
[1768301222053,7.05039126,141.84,141.79,0.66275395]
[1768301222261,3.18497764,141.83,141.79,0.66275395]
[1768301222457,3.18497764,141.81,141.77,7.05348381]
[1768301222758,3.18497764,141.81,141.78,12.88]
[1768301222947,27.86086241,141.84,141.78,12.88]
[1768301223153,3.18497764,141.82,141.78,13.54275395]
[1768301223356,3.18497764,141.81,141.78,13.54275395]
[1768301224449,3.18497764,141.81,141.79,0.66275395]
[1768301224637,27.86086241,141.84,141.79,0.66275395]
[1768301224838,9.97716869,141.83,141.79,0.66275395]
[1768301225040,3.18497764,141.81,141.79,0.66275395]
[1768301225539,3.18497764,141.8,141.77,0.68992659]
[1768301225858,3.0031987,141.8,141.78,12.88]
[1768301226952,3.18497764,141.8,141.78,12.88]
[1768301227861,7.05204361,141.81,141.78,13.56992659]
[1768301228044,3.18497764,141.8,141.78,13.56992659]
[1768301229275,24.67846323,141.83,141.78,13.56992659]
[1768301229450,2.03888651,141.8,141.78,13.56992659]
[1768301230850,9.09118588,141.8,141.78,13.56992659]
[1768301231054,9.09118588,141.8,141.78,0.68992659]
[1768301231261,9.09118588,141.8,141.79,12.88]
[1768301232850,9.09118588,141.8,141.78,0.68992659]
[1768301233279,7.05229937,141.8,141.78,0.68992659]
[1768301233469,9.09118588,141.8,141.78,0.68992659]
[1768301233774,7.05229937,141.8,141.78,0.68992659]
[1768301233975,9.09118588,141.8,141.78,0.68992659]
[1768301234173,2.03888651,141.79,141.76,0.68992659]
[1768301234483,2.03888651,141.79,141.77,12.88]
[1768301234851,9.09192441,141.79,141.77,12.88]
[1768301235465,9.09192441,141.79,141.77,13.56992659]
[1768301238070,9.09192441,141.79,141.77,12.56992659]
[1768301238292,9.09192441,141.79,141.77,0.68992659]
[1768301240075,7.0530379,141.79,141.77,0.68992659]
[1768301240292,9.09192441,141.79,141.76,0.7186021]
[1768301240457,2.03888651,141.78,141.76,0.7186021]
[1768301240657,2.03888651,141.77,141.75,0.7186021]
[1768301241352,9.09266358,141.77,141.75,0.7186021]
[1768301241770,7.05377707,141.77,141.75,0.7186021]
[1768301242094,7.05377707,141.77,141.7,85.7222914]
[1768301242095,2.03888651,141.76,141.73,13.5986021]
[1768301242886,1.97888651,141.76,141.73,13.5986021]
[1768301243089,2.03888651,141.75,141.73,13.5986021]
[1768301243384,1.9788865,141.75,141.73,13.5986021]
[1768301243887,7.05377707,141.77,141.73,20.65424305]
[1768301244082,9.09266358,141.77,141.73,20.65424305]
[1768301244385,9.09266358,141.77,141.74,12.88]
[1768301244773,9.09266358,141.77,141.74,13.5986021]
[1768301246891,7.05268354,141.79,141.75,0.7186021]
[1768301247070,2.03888651,141.78,141.75,0.7186021]
[1768301247462,2.03888651,141.77,141.75,0.7186021]
[1768301247994,9.09208201,141.78,141.75,0.7186021]
[1768301248170,7.0531955,141.78,141.75,0.7186021]
[1768301248370,17.62922219,141.81,141.76,0.7186021]
[1768301248573,12.04459453,141.8,141.76,0.7186021]
[1768301248768,2.03888651,141.79,141.77,12.88]
[1768301249168,7.05168887,141.81,141.77,12.88]
[1768301249392,2.03888651,141.79,141.77,12.88]
[1768301250292,7.05238118,141.8,141.77,12.88]
[1768301250481,2.03888651,141.79,141.77,12.88]
[1768301250876,2.03888651,141.79,141.77,13.5986021]
[1768301252190,7.05168887,141.81,141.77,13.5986021]
[1768301252492,10.0192923,141.8,141.77,13.5986021]
[1768301252691,12.05817881,141.79,141.77,13.5986021]
[1768301252889,7.05168887,141.81,141.77,13.5986021]
[1768301253091,12.05926076,141.8,141.78,0.7186021]
[1768301253269,2.03888651,141.8,141.78,0.7186021]
[1768301253678,2.03888651,141.79,141.78,0.7186021]
[1768301254177,12.06160982,141.79,141.78,0.7186021]
[1768301255695,12.06226179,141.79,141.78,0.7186021]
[1768301256195,10.02337528,141.79,141.78,0.7186021]
[1768301256887,12.06226179,141.79,141.78,13.5986021]
[1768301257399,10.02337528,141.79,141.78,13.5986021]
[1768301257599,12.06226179,141.79,141.78,13.5986021]
[1768301257901,6.78624662,141.79,141.78,13.5986021]
[1768301261803,4.74736011,141.79,141.78,13.5986021]
[1768301261979,2.03888651,141.8,141.78,13.5986021]
[1768301262503,2.03888651,141.8,141.79,0.7067782]
[1768301262698,12.06457379,141.8,141.79,0.7067782]
[1768301263194,6.7878905,141.8,141.79,0.7067782]
[1768301263371,4.74900399,141.8,141.78,13.5867782]
[1768301263575,2.03888651,141.81,141.78,13.5867782]
[1768301263775,6.78801062,141.8,141.78,13.5867782]
[1768301263975,2.03888651,141.8,141.78,13.5867782]
[1768301265092,24.67792935,141.83,141.78,13.5867782]
[1768301265409,2.03888651,141.8,141.78,13.5867782]
[1768301266105,24.67792935,141.83,141.78,13.5867782]
[1768301266308,2.03888651,141.8,141.78,13.5867782]
[1768301268586,7.05119165,141.82,141.79,0.7067782]
[1768301268793,12.06462189,141.81,141.79,0.7067782]
[1768301268993,2.03888651,141.81,141.79,13.5867782]
[1768301269182,7.05119165,141.82,141.79,13.5867782]
[1768301269382,12.06431034,141.81,141.79,13.5867782]
[1768301269706,2.03888651,141.81,141.79,13.5867782]
[1768301272981,2.03888651,141.81,141.72,98.718179]
[1768301272982,7.04970038,141.85,141.8,0.7067782]
[1768301273318,4.18279003,141.81,141.74,12.88]
[1768301273490,2.03888651,141.77,141.7,21.32146707]